bitfinex-derivatives/quotes_BTCF0:USTF0_20251125
["timestamp","ask_amount","ask_price","bid_price","bid_amount"]
[1764083613067,1.01847,86746.0,86745.0,0.0115334]
[1764083613267,0.0115334,86745.0,86739.0,0.24539114]
[1764083613567,0.3608,86746.0,86739.0,0.24539114]
[1764083613767,0.25767,86754.0,86753.0,0.0115323]
[1764083614174,0.00143,86756.0,86755.0,0.25614]
[1764083615064,0.25767,86751.0,86748.0,0.0115329]
[1764083615264,0.25767,86749.0,86747.0,0.42279114]
[1764083615466,0.38,86749.0,86748.0,0.451073]
[1764083615766,0.37,86749.0,86748.0,0.451073]
[1764083616162,0.00143,86756.0,86755.0,0.1362121]
[1764083616370,0.00143,86756.0,86755.0,0.6284721]
[1764083617169,0.25767,86782.0,86781.0,0.0115286]
[1764083617468,0.25767,86793.0,86780.0,0.06199605]
[1764083617768,0.25767,86793.0,86792.0,0.12468]
[1764083617769,0.09,86793.0,86792.0,0.12468]
[1764083618070,0.3608,86798.0,86792.0,0.2676672]
[1764083618369,0.3608,86798.0,86788.0,0.0115277]
[1764083618370,0.12915,86793.0,86788.0,0.0115277]
[1764083618665,0.12915,86793.0,86784.0,0.0001729]
[1764083618666,0.25767,86785.0,86784.0,0.0001729]
[1764083618871,0.64767,86785.0,86784.0,0.0001729]
[1764083619172,0.43,86785.0,86784.0,0.3082529]
[1764083619369,0.55915,86785.0,86784.0,0.0001729]
[1764083619562,0.68767,86785.0,86784.0,0.1835329]
[1764083620076,0.43,86785.0,86784.0,0.4396729]
[1764083620770,1.11767,86785.0,86784.0,0.0001729]
[1764083620971,0.2692009,86764.0,86762.0,0.06195064]
[1764083621172,0.0115315,86760.0,86757.0,0.3608]
[1764083621365,0.0115315,86760.0,86728.0,0.24821878]
[1764083621366,0.24597,86749.0,86747.0,0.06195064]
[1764083621667,0.2575055,86729.0,86727.0,0.06195064]
[1764083621872,0.2575055,86729.0,86723.0,0.18344]
[1764083621873,0.1332262,86724.0,86723.0,0.18344]
[1764083622076,0.2575068,86720.0,86719.0,0.1836129]
[1764083622270,0.2575068,86720.0,86719.0,0.0001729]
[1764083622271,1.0583068,86720.0,86719.0,0.0001729]
[1764083622773,0.2575094,86700.0,86694.0,0.18348]
[1764083622973,0.2575094,86700.0,86690.0,0.06195064]
[1764083622974,1.41757,86700.0,86690.0,0.18348]
[1764083623675,1.41757,86700.0,86692.0,0.0115405]
[1764083624170,1.41757,86700.0,86691.0,0.00017301]
[1764083624375,1.41757,86700.0,86699.0,0.00114836]
[1764083624575,1.41757,86700.0,86699.0,0.00214836]
[1764083625068,1.0216,86700.0,86699.0,0.24845836]
[1764083625270,0.3608,86700.0,86699.0,0.24845836]
[1764083626173,1.01677,86700.0,86699.0,0.00214836]
[1764083626571,0.89249,86700.0,86699.0,0.01368786]
[1764083626772,0.3608,86700.0,86699.0,0.01368786]
[1764083626962,0.3608,86700.0,86699.0,0.25999786]
[1764083627871,0.3608,86700.0,86699.0,0.24845836]
[1764083628177,0.3608,86700.0,86699.0,0.43193836]
[1764083628374,0.3608,86700.0,86699.0,0.12487836]
[1764083628574,0.98677,86700.0,86699.0,0.00214836]
[1764083628878,1.34757,86700.0,86699.0,0.00214836]
[1764083629275,1.77757,86700.0,86699.0,0.00214836]
[1764083629477,1.44757,86700.0,86699.0,0.00214836]
[1764083629671,0.2575105,86692.0,86691.0,0.00017301]
[1764083629973,1.0583105,86692.0,86691.0,0.00017301]
[1764083630280,1.04677,86692.0,86691.0,0.00017301]
[1764083630776,1.04677,86692.0,86691.0,0.00117301]
[1764083632279,1.04677,86692.0,86691.0,0.00017301]
[1764083633779,0.0115421,86681.0,86670.0,0.06975]
[1764083633973,0.3608,86672.0,86671.0,0.1342733]
[1764083634168,0.24597,86669.0,86668.0,0.18344]
[1764083634376,0.12169,86668.0,86667.0,0.0115437]
[1764083634580,0.42,86668.0,86667.0,0.2578537]
[1764083634780,0.42,86668.0,86658.0,0.18344]
[1764083634781,0.3608,86672.0,86671.0,0.2578533]
[1764083634975,0.00017301,86676.0,86675.0,0.2578527]
[1764083635277,0.00014281,86680.0,86679.0,0.24631]
[1764083636474,0.00014281,86680.0,86679.0,0.24731]
[1764083636978,0.00014281,86680.0,86679.0,0.43075]
[1764083637178,0.00014281,86680.0,86679.0,0.24731]
[1764083637385,0.00014281,86680.0,86679.0,0.43079]
[1764083638470,0.00014281,86680.0,86679.0,0.43179]
[1764083638675,0.41014281,86680.0,86679.0,0.43179]
[1764083639470,0.00014281,86680.0,86679.0,0.43179]
[1764083639676,0.00014281,86680.0,86679.0,0.43079]
[1764083640384,0.00014281,86680.0,86679.0,0.18448]
[1764083640385,0.68206281,86680.0,86679.0,0.18448]
[1764083640572,0.00014281,86680.0,86679.0,0.41556]
[1764083640973,0.00017301,86688.0,86687.0,0.2426211]
[1764083641175,0.3608,86715.0,86714.0,0.2426175]
[1764083641475,0.23192,86713.0,86712.0,0.18348]
[1764083641684,0.11249,86704.0,86703.0,0.011539]
[1764083641877,0.3608,86715.0,86703.0,0.41456]
[1764083642184,0.11249,86704.0,86703.0,0.195019]
[1764083642390,0.3608,86708.0,86707.0,0.1250885]
[1764083642575,0.7608,86708.0,86700.0,0.25207301]
[1764083642774,0.59272,86701.0,86700.0,0.00017301]
[1764083642974,0.99272,86701.0,86700.0,0.00017301]
[1764083644283,1.0042593,86701.0,86700.0,0.00017301]
[1764083644490,1.0042593,86701.0,86670.0,0.06975]
[1764083644491,0.011541,86688.0,86670.0,0.06975]
[1764083644679,0.011541,86688.0,86673.0,0.11355]
[1764083644680,0.3608,86674.0,86673.0,0.11355]
[1764083644984,0.3608,86674.0,86671.0,0.0115433]
[1764083644985,0.11249,86672.0,86671.0,0.0115433]
[1764083645489,0.3608,86684.0,86683.0,0.2426217]
[1764083645785,0.3608,86684.0,86674.0,0.0115428]
[1764083645786,0.11249,86675.0,86674.0,0.0115428]
[1764083645984,0.23192,86674.0,86673.0,0.001]
[1764083646286,0.65192,86674.0,86673.0,0.001]
[1764083646680,0.23192,86671.0,86670.0,0.001]
[1764083647077,0.59192,86671.0,86670.0,0.001]
[1764083647487,0.2434642,86664.0,86663.0,0.00017301]
[1764083647786,0.0115467,86646.0,86639.0,0.18108]
[1764083647983,0.0115467,86646.0,86635.0,0.06167991]
[1764083647984,0.47329,86644.0,86635.0,0.011548]
[1764083648186,0.89329,86644.0,86635.0,0.011548]
[1764083648485,1.0242669,86644.0,86634.0,0.18348]
[1764083648677,1.0242669,86644.0,86635.0,0.00017312]
[1764083648881,0.23192,86636.0,86635.0,0.00017312]
[1764083649083,1.01272,86636.0,86635.0,0.00017312]
[1764083649483,1.01272,86636.0,86635.0,0.23125312]
[1764083649484,0.6208,86636.0,86635.0,0.23125312]
[1764083649883,0.62094856,86636.0,86635.0,0.23125312]
[1764083650091,0.62094856,86636.0,86635.0,0.00017312]
[1764083650390,0.36094856,86636.0,86635.0,0.23125312]
[1764083650590,0.00014856,86636.0,86635.0,0.59205312]
[1764083650787,0.36097312,86652.0,86651.0,0.2426259]
[1764083650989,0.58097312,86652.0,86651.0,0.2426259]
[1764083651192,0.58097312,86652.0,86651.0,0.23108]
[1764083651387,0.0115459,86651.0,86644.0,0.06188617]
[1764083651592,0.45,86651.0,86643.0,0.06188617]
[1764083651887,0.11431,86642.0,86641.0,0.06188617]
[1764083652089,0.11431,86637.0,86636.0,0.06188617]
[1764083652295,1.03078,86637.0,86636.0,0.06188617]
[1764083652484,0.22998,86636.0,86635.0,0.00017312]
[1764083652693,0.61998,86636.0,86635.0,0.00017312]
[1764083652883,0.22998,86634.0,86633.0,0.06188617]
[1764083653188,0.11431,86631.0,86629.0,0.0115489]
[1764083653396,0.3608,86630.0,86629.0,0.0115489]
[1764083653598,0.7308,86630.0,86629.0,0.0115489]
[1764083653786,0.7308,86630.0,86629.0,0.2427489]
[1764083654389,0.96078,86630.0,86629.0,0.0115489]
[1764083654997,0.84511,86630.0,86629.0,0.0135489]
[1764083655195,0.96078,86630.0,86629.0,0.002]
[1764083655391,0.2415298,86622.0,86621.0,0.00017312]
[1764083655697,1.03078,86622.0,86621.0,0.00017312]
[1764083656088,0.22998,86613.0,86612.0,0.06188617]
[1764083656289,0.11431,86607.0,86606.0,0.06188617]
[1764083656488,0.11431,86604.0,86603.0,0.18356]
[1764083656690,0.97078,86604.0,86603.0,0.18356]
[1764083657600,0.7408,86604.0,86595.0,0.00017061]
[1764083657891,0.7408,86604.0,86599.0,0.0115528]
[1764083658192,0.7408,86604.0,86603.0,0.001]
[1764083658490,0.64511,86604.0,86603.0,0.001]
[1764083658686,0.5308,86604.0,86603.0,0.2322]
[1764083658888,0.98078,86604.0,86603.0,0.001]
[1764083659082,0.22998,86600.0,86599.0,0.001]
[1764083659284,0.67998,86600.0,86599.0,0.001]
[1764083659484,0.22998,86596.0,86595.0,0.00017061]
[1764083659687,1.04078,86596.0,86595.0,0.00017061]
[1764083660289,1.04078,86596.0,86594.0,0.0115535]
[1764083660290,0.22998,86594.0,86593.0,0.00012378]
[1764083660489,0.22998,86584.0,86583.0,0.0115549]
[1764083660791,0.11431,86579.0,86575.0,0.18356]
[1764083660994,0.59078,86576.0,86575.0,0.18356]
[1764083661289,0.61492,86576.0,86575.0,0.41476]
[1764083661492,0.00010812,86576.0,86575.0,0.2312]
[1764083661684,0.12597412,86576.0,86559.0,0.3608]
[1764083661881,0.11431,86565.0,86564.0,0.0115574]
[1764083662086,0.11431,86565.0,86559.0,0.3608]
[1764083662087,0.22998,86572.0,86571.0,0.0115565]
[1764083662286,0.38,86572.0,86571.0,0.0115565]
[1764083663082,0.60998,86572.0,86571.0,0.0115565]
[1764083663503,0.22998,86567.0,86566.0,0.3608]
[1764083663788,0.61998,86567.0,86566.0,0.3608]
[1764083663993,0.61998,86567.0,86566.0,0.3723573]
[1764083664293,0.39,86567.0,86566.0,0.6035573]
[1764083664693,0.00010812,86576.0,86575.0,0.2427561]
[1764083664892,0.00010812,86576.0,86566.0,0.3608]
[1764083664893,0.23008812,86576.0,86566.0,0.3618]
[1764083665094,0.00010812,86576.0,86575.0,0.2312]
[1764083665994,0.00010812,86576.0,86575.0,0.592]
[1764083666798,0.00010812,86576.0,86575.0,0.593]
[1764083667194,0.00010812,86576.0,86575.0,0.594]
[1764083667594,0.23008812,86576.0,86575.0,0.3618]
[1764083667797,0.29846711,86583.0,86575.0,0.3618]
[1764083667992,0.69846711,86583.0,86575.0,0.3618]
[1764083668300,0.11431,86579.0,86576.0,0.0115559]
[1764083668497,0.48431,86579.0,86575.0,0.3618]
[1764083668692,0.37,86579.0,86578.0,0.2427557]
[1764083669199,0.37,86579.0,86575.0,0.3618]
[1764083669200,0.1258659,86576.0,86575.0,0.3618]
[1764083669391,0.1258659,86576.0,86575.0,0.001]
[1764083669392,0.61998,86576.0,86575.0,0.001]
[1764083669892,0.39,86576.0,86575.0,0.2322]
[1764083670295,0.39,86576.0,86575.0,0.2312]
[1764083670599,0.11431,86574.0,86573.0,0.3723563]
[1764083670795,0.53431,86574.0,86573.0,0.3723563]
[1764083671099,0.64998,86574.0,86573.0,0.3608]
[1764083671302,0.42,86574.0,86573.0,0.592]
[1764083672097,0.00017322,86584.0,86583.0,0.242755]
[1764083672598,0.3608,86601.0,86592.0,0.2427538]
[1764083672903,0.3608,86601.0,86600.0,0.2427527]
[1764083674001,0.3618,86601.0,86600.0,0.2427527]
[1764083674389,0.001,86601.0,86600.0,0.2427527]
[1764083674595,0.00017322,86609.0,86608.0,0.2427517]
[1764083674796,0.00017322,86609.0,86608.0,0.6035517]
[1764083675397,0.00017322,86609.0,86608.0,0.7872317]
[1764083675902,3.22e-06,86609.0,86608.0,0.7872317]
[1764083677193,0.3608,86620.0,86619.0,0.2427502]
[1764083677393,0.22998,86625.0,86624.0,0.0115494]
[1764083677702,0.0115467,86646.0,86623.0,0.3608]
[1764083677903,0.3608,86640.0,86623.0,0.3608]
[1764083678096,0.76097322,86640.0,86633.0,0.0115482]
[1764083678297,0.0115479,86637.0,86633.0,0.0115482]
[1764083678504,0.4015479,86637.0,86633.0,0.0115482]
[1764083678804,0.39,86637.0,86623.0,0.36097322]
[1764083679005,0.39,86637.0,86628.0,0.0115489]
[1764083679301,0.22998,86634.0,86633.0,0.0115482]
[1764083679495,0.61998,86634.0,86633.0,0.0115482]
[1764083680202,0.61998,86634.0,86630.0,0.0115487]
[1764083680402,0.6325283,86634.0,86626.0,0.0115492]
[1764083680603,0.22998,86624.0,86623.0,0.00017322]
[1764083680803,0.67998,86624.0,86623.0,0.00017322]
[1764083681400,1.04078,86624.0,86623.0,0.00017322]
[1764083681800,0.65078,86624.0,86623.0,0.00017322]
[1764083681999,0.63998,86624.0,86623.0,0.00017322]
[1764083684505,0.21808,86615.0,86614.0,0.18364]
[1764083684702,0.62808,86615.0,86614.0,0.18364]
[1764083685507,0.62808,86615.0,86614.0,0.1951909]
[1764083686212,0.62808,86615.0,86614.0,0.18364]
[1764083687003,0.62808,86615.0,86611.0,0.0115512]
[1764083687004,0.21808,86612.0,86611.0,0.0115512]
[1764083687204,0.00017322,86620.0,86619.0,0.3078702]
[1764083687400,0.57888,86633.0,86620.0,0.37235]
[1764083687599,0.21808,86631.0,86630.0,0.0115486]
[1764083687813,0.65808,86631.0,86630.0,0.0115486]
[1764083688112,0.6696286,86631.0,86630.0,0.0115486]
[1764083688297,0.44,86631.0,86621.0,0.0115499]
[1764083688502,0.10802,86624.0,86623.0,0.0115496]
[1764083688701,0.0115497,86623.0,86620.0,0.0115501]
[1764083688903,0.2296304,86618.0,86617.0,0.0115504]
[1764083689109,0.21808,86615.0,86614.0,0.0115508]
[1764083689310,0.63808,86615.0,86614.0,0.0115508]
[1764083690602,0.21808,86623.0,86622.0,0.0115498]
[1764083690801,0.65808,86623.0,86622.0,0.0115498]
[1764083691110,0.65808,86623.0,86622.0,0.1258898]
[1764083691311,0.65808,86623.0,86622.0,0.0115498]
[1764083692708,0.65808,86623.0,86611.0,0.42268617]
[1764083692709,0.0115498,86622.0,86619.0,0.0115502]
[1764083692912,0.0115499,86621.0,86616.0,0.0115505]
[1764083693108,0.45155,86621.0,86617.0,0.0115504]
[1764083693311,0.10802,86616.0,86611.0,0.3608]
[1764083693512,0.1216103,86618.0,86611.0,0.3723513]
[1764083693513,0.21808,86612.0,86611.0,0.3723513]
[1764083693707,0.21808,86612.0,86611.0,0.4866913]
[1764083693907,0.58808,86612.0,86611.0,0.1258913]
[1764083694107,0.21808,86610.0,86609.0,0.1951914]
[1764083694308,0.62808,86610.0,86609.0,0.3095314]
[1764083694805,0.62808,86610.0,86609.0,0.1951914]
[1764083695210,0.62808,86610.0,86609.0,0.18364]
[1764083695406,0.1195715,86609.0,86606.0,0.06205939]
[1764083695605,0.21808,86607.0,86606.0,0.00017322]
[1764083695807,0.21808,86607.0,86606.0,0.23057322]
[1764083695808,0.60808,86607.0,86606.0,0.23057322]
[1764083696007,0.3608,86615.0,86607.0,0.0115518]
[1764083696213,0.90882,86615.0,86614.0,0.2304]
[1764083696705,1.01888,86615.0,86614.0,0.2304]
[1764083696902,0.21808,86610.0,86609.0,0.0115514]
[1764083697112,0.65808,86610.0,86609.0,0.0115514]
[1764083697311,0.54802,86610.0,86609.0,0.2419514]
[1764083697511,0.00017322,86616.0,86615.0,0.2304]
[1764083700016,2e-08,86616.0,86615.0,0.2304]
[1764083700317,0.0115482,86635.0,86632.0,0.104]
[1764083700512,0.1092,86642.0,86641.0,0.0115472]
[1764083700716,0.21096,86636.0,86635.0,0.06214391]
[1764083700915,0.21096,86635.0,86630.0,0.0115487]
[1764083701115,0.21096,86625.0,86624.0,0.00017312]
[1764083701315,0.39,86625.0,86624.0,0.21231312]
[1764083701517,0.3608,86650.0,86640.0,0.2236874]
[1764083701819,0.10176,86628.0,86626.0,0.08286261]
[1764083702020,0.1092,86627.0,86626.0,0.2236891]
[1764083702216,0.1092,86627.0,86626.0,0.4072891]
[1764083702520,0.21096,86632.0,86631.0,0.0115485]
[1764083702717,0.36197312,86641.0,86634.0,0.21214]
[1764083703021,0.1092,86639.0,86638.0,0.0115476]
[1764083703222,0.37,86639.0,86635.0,0.104]
[1764083703417,0.2225085,86632.0,86630.0,0.08286261]
[1764083703621,0.21096,86629.0,86628.0,0.08286261]
[1764083703921,0.21096,86629.0,86626.0,0.1836]
[1764083703922,0.00117312,86641.0,86640.0,0.21214]
[1764083704220,0.21096,86633.0,86632.0,0.08297452]
[1764083704418,0.21096,86625.0,86621.0,0.0115499]
[1764083704619,0.59096,86625.0,86624.0,0.00017312]
[1764083705915,0.38,86625.0,86624.0,0.21231312]
[1764083706118,0.3608,86633.0,86632.0,0.2888485]
[1764083706327,0.3608,86633.0,86632.0,0.37184456]
[1764083706818,0.3608,86633.0,86632.0,0.2888485]
[1764083707018,0.3608,86633.0,86632.0,0.4724485]
[1764083707226,0.3608,86633.0,86632.0,0.55542332]
[1764083707420,0.3608,86633.0,86632.0,0.4724485]
[1764083708117,0.372347,86644.0,86640.0,0.1155474]
[1764083708319,0.3608,86644.0,86640.0,0.2236874]
[1764083708824,0.3608,86644.0,86640.0,0.21214]
[1764083709016,0.3723469,86644.0,86640.0,0.21214]
[1764083709215,0.0115474,86640.0,86637.0,0.0115477]
[1764083709423,0.2225085,86632.0,86631.0,0.08296646]
[1764083709622,0.0115489,86629.0,86628.0,0.1836]
[1764083709820,0.1092,86630.0,86629.0,0.0115489]
[1764083710127,0.21096,86630.0,86628.0,0.1951489]
[1764083710420,0.21096,86625.0,86624.0,0.26673958]
[1764083710618,0.60096,86625.0,86624.0,0.26673958]
[1764083710825,0.96176,86625.0,86624.0,0.00017312]
[1764083711528,0.21451,86615.0,86614.0,0.08296646]
[1764083711717,0.96531,86615.0,86612.0,0.09451746]
[1764083712221,0.8621,86615.0,86614.0,0.21432]
[1764083712427,0.7508,86615.0,86614.0,0.21432]
[1764083712920,0.0115509,86614.0,86612.0,0.08296646]
[1764083713125,0.21451,86613.0,86612.0,0.08296646]
[1764083713319,0.2260611,86612.0,86610.0,0.09451776]
[1764083713520,0.21451,86608.0,86607.0,0.1836]
[1764083713825,0.21451,86608.0,86606.0,0.00017312]
[1764083713826,0.2260618,86607.0,86606.0,0.00017312]
[1764083714020,0.6260618,86607.0,86606.0,0.00017312]
[1764083714329,0.6260618,86607.0,86593.0,9.101e-05]
[1764083714330,0.2260631,86597.0,86596.0,0.08297413]
[1764083714629,0.21451,86595.0,86593.0,0.08306514]
[1764083714826,0.2260635,86594.0,86593.0,9.101e-05]
[1764083715027,0.6560635,86594.0,86593.0,9.101e-05]
[1764083715230,0.64451,86594.0,86593.0,9.101e-05]
[1764083715627,0.00017322,86602.0,86601.0,0.21432]
[1764083715924,0.57548322,86602.0,86599.0,0.26657413]
[1764083716124,0.21451,86600.0,86599.0,0.08297413]
[1764083716331,0.62451,86600.0,86599.0,0.0115529]
[1764083716524,0.62451,86600.0,86597.0,0.08297413]
[1764083716731,0.1113,86598.0,86597.0,0.20065713]
[1764083716932,0.1113,86598.0,86597.0,0.117683]
[1764083717329,0.1113,86598.0,86597.0,0.20056986]
[1764083717824,0.36097322,86602.0,86601.0,0.2258726]
[1764083718026,0.07017322,86602.0,86601.0,0.2258726]
[1764083718229,0.40017322,86602.0,86601.0,0.2258726]
[1764083718419,0.61468322,86602.0,86601.0,0.0115526]
[1764083718619,0.00017322,86602.0,86601.0,0.2258726]
[1764083718819,0.21468322,86602.0,86601.0,0.10613]
[1764083719029,0.65468322,86602.0,86601.0,0.10613]
[1764083719225,0.11147322,86602.0,86601.0,0.21432]
[1764083719523,0.43017322,86602.0,86601.0,0.21432]
[1764083719733,0.21451,86600.0,86599.0,0.08288615]
[1764083719925,0.1113,86599.0,86598.0,0.08288615]
[1764083720123,0.00017322,86602.0,86599.0,0.0115529]
[1764083720329,0.40017322,86602.0,86601.0,0.21432]
[1764083720841,0.11147322,86602.0,86601.0,0.21432]
[1764083721028,0.21451,86600.0,86599.0,0.09443905]
[1764083721327,0.65451,86600.0,86599.0,0.0115529]
[1764083721530,0.21451,86599.0,86598.0,0.08288615]
[1764083721719,0.21451,86599.0,86594.0,0.1836]
[1764083721720,0.2260633,86596.0,86595.0,0.08288615]
[1764083721920,0.65451,86596.0,86595.0,0.08288615]
[1764083722123,0.21468322,86602.0,86601.0,0.2258726]
[1764083722323,0.60468322,86602.0,86601.0,0.0115526]
[1764083722528,0.39017322,86602.0,86601.0,0.2258726]
[1764083722735,0.39017322,86602.0,86601.0,0.30872346]
[1764083723221,0.00017322,86602.0,86601.0,0.30872346]
[1764083723630,0.1113,86598.0,86597.0,0.3723531]
[1764083723832,0.00017322,86602.0,86601.0,0.21432]
[1764083724232,0.57531,86618.0,86606.0,0.0653]
[1764083724535,0.57531,86618.0,86601.0,0.001]
[1764083724536,0.1113,86605.0,86604.0,0.08283367]
[1764083724733,0.1113,86605.0,86604.0,0.10613]
[1764083724926,0.21451,86605.0,86604.0,0.10613]
[1764083725236,0.43,86605.0,86604.0,0.21432]
[1764083725534,0.1113,86602.0,86601.0,0.001]
[1764083725833,0.3608,86610.0,86604.0,0.001]
[1764083726034,0.3608,86610.0,86609.0,0.21432]
[1764083726223,0.57531,86610.0,86609.0,0.10613]
[1764083726430,0.21451,86605.0,86604.0,0.001]
[1764083726626,0.59451,86605.0,86604.0,0.001]
[1764083727630,0.59451,86605.0,86604.0,0.10713]
[1764083727835,0.59451,86605.0,86604.0,0.001]
[1764083728734,0.59451,86605.0,86604.0,0.10713]
[1764083728930,0.59451,86605.0,86604.0,0.28062]
[1764083729132,0.66451,86605.0,86604.0,0.001]
[1764083730229,0.21451,86599.0,86596.0,0.00017322]
[1764083730432,0.57531,86597.0,86596.0,0.00017322]
[1764083730735,0.95531,86597.0,86596.0,0.00017322]
[1764083731635,0.21451,86586.0,86584.0,0.082835]
[1764083731935,0.21451,86578.0,86577.0,0.082835]
[1764083732125,0.21451,86577.0,86576.0,0.0115558]
[1764083732326,0.58451,86577.0,86576.0,0.0115558]
[1764083732626,0.58462033,86577.0,86576.0,0.1176858]
[1764083732936,0.21451,86565.0,86564.0,0.0943925]
[1764083733137,0.59451,86565.0,86564.0,0.1176875]
[1764083733437,0.21451,86572.0,86571.0,0.0115566]
[1764083733635,0.58451,86572.0,86571.0,0.0115566]
[1764083733824,0.02,86572.0,86571.0,0.2258766]
[1764083734029,0.21462033,86577.0,86576.0,0.1176859]
[1764083734234,0.21451,86576.0,86575.0,0.06208681]
[1764083734431,0.2260661,86575.0,86574.0,0.06208681]
[1764083734733,0.41,86575.0,86574.0,0.0115562]
[1764083734937,0.41,86575.0,86574.0,0.28795501]
[1764083735251,0.41,86575.0,86574.0,0.2258762]
[1764083735439,0.5213,86575.0,86574.0,0.2258762]
[1764083735936,0.5213,86575.0,86574.0,0.2278762]
[1764083736136,0.62451,86575.0,86574.0,0.0135562]
[1764083736334,0.62451,86575.0,86574.0,0.002]
[1764083736335,0.6360661,86575.0,86574.0,0.002]
[1764083736535,0.21451,86553.0,86552.0,0.082835]
[1764083736839,0.21451,86552.0,86551.0,0.0115592]
[1764083737031,0.21451,86552.0,86546.0,0.082835]
[1764083737032,0.61451,86552.0,86546.0,0.082835]
[1764083737229,0.21451,86547.0,86546.0,0.0115598]
[1764083737430,0.21451,86541.0,86539.0,0.082835]
[1764083737630,0.21451,86540.0,86539.0,0.0115608]
[1764083737826,0.1113,86539.0,86537.0,0.082835]
[1764083738030,0.011561,86538.0,86534.0,0.443635]
[1764083738228,0.011561,86538.0,86534.0,0.3608]
[1764083738229,0.21451,86535.0,86534.0,0.3608]
[1764083738430,0.21451,86533.0,86532.0,0.0001466]
[1764083738635,0.63451,86533.0,86532.0,0.0001466]
[1764083739540,0.1113,86520.0,86519.0,0.0115635]
[1764083739744,0.46451,86520.0,86519.0,0.1176935]
[1764083740032,0.00010513,86535.0,86531.0,0.0115619]
[1764083740237,0.21451,86532.0,86531.0,0.0115619]
[1764083740437,0.39,86532.0,86531.0,0.2258819]
[1764083740634,0.60451,86532.0,86531.0,0.0115619]
[1764083741336,0.00010513,86535.0,86532.0,0.0115618]
[1764083741637,0.41010513,86535.0,86534.0,0.20623]
[1764083742141,0.00010513,86535.0,86534.0,0.20623]
[1764083744038,0.00010513,86535.0,86534.0,0.20723]
[1764083744251,0.20000513,86535.0,86534.0,0.002]
[1764083744537,0.57000513,86535.0,86534.0,0.0125615]
[1764083744935,0.57000513,86535.0,86531.0,0.0115619]
[1764083744936,0.1999,86532.0,86531.0,0.0115619]
[1764083745241,0.09926,86531.0,86530.0,0.10003]
[1764083745736,0.01166663,86535.0,86528.0,0.4322622]
[1764083745737,0.00010513,86535.0,86534.0,0.2177915]
[1764083745939,0.38010513,86535.0,86534.0,0.2177915]
[1764083746345,0.47936513,86535.0,86534.0,0.20623]
[1764083746639,0.41010513,86535.0,86534.0,0.20623]
[1764083746837,0.00010513,86535.0,86534.0,0.20623]
[1764083747043,0.09936513,86535.0,86534.0,0.20623]
[1764083747538,0.40010513,86535.0,86534.0,0.20623]
[1764083747745,0.24010513,86535.0,86534.0,0.20623]
[1764083747938,0.00010513,86535.0,86534.0,0.20723]
[1764083748240,0.45010513,86535.0,86534.0,0.20723]
[1764083748442,0.45010513,86535.0,86534.0,0.20623]
[1764083748840,0.65000513,86535.0,86528.0,0.4207]
[1764083749146,0.1999,86532.0,86531.0,0.2177919]
[1764083749335,0.00010513,86535.0,86534.0,0.2177915]
[1764083753542,0.09936513,86535.0,86534.0,0.2177915]
[1764083753746,0.20000513,86535.0,86534.0,0.20623]
[1764083754137,0.09936513,86535.0,86534.0,0.20623]
[1764083754434,0.00010513,86535.0,86534.0,0.20623]
[1764083757547,0.09936513,86535.0,86534.0,0.38995]
[1764083757849,0.00010513,86535.0,86534.0,0.38995]
[1764083758449,0.20000513,86535.0,86534.0,0.28375]
[1764083759148,0.20000513,86535.0,86534.0,0.37364]
[1764083759548,0.00010513,86535.0,86534.0,0.37364]
[1764083759942,0.00010513,86535.0,86534.0,0.43556316]
[1764083760342,0.43010513,86535.0,86528.0,0.3608]
[1764083760542,0.18352,86534.0,86533.0,0.06209719]
[1764083760849,0.1950843,86513.0,86512.0,0.06209719]
[1764083761047,0.4200946,86513.0,86512.0,0.17749]
[1764083761248,9.46e-05,86513.0,86512.0,0.17749]
[1764083761451,0.00017333,86521.0,86520.0,0.1890534]
[1764083761647,0.3608,86535.0,86534.0,0.1890515]
[1764083761848,0.7308,86535.0,86534.0,0.1890515]
[1764083762240,0.91432,86535.0,86532.0,0.18372]
[1764083762445,0.18352,86533.0,86532.0,0.3727717]
[1764083762652,0.52352,86533.0,86532.0,0.3727717]
[1764083763149,0.34,86533.0,86532.0,0.43491505]
[1764083763348,0.52352,86533.0,86532.0,0.18372]
[1764083763549,0.52352,86533.0,86532.0,0.24590824]
[1764083763742,0.52352,86533.0,86532.0,0.1952818]
[1764083764148,0.52352,86533.0,86532.0,0.18372]
[1764083764344,0.1950823,86528.0,86527.0,0.06218824]
[1764083764645,0.18352,86525.0,86522.0,0.06218824]
[1764083764846,0.55352,86525.0,86522.0,0.06218824]
[1764083765049,0.55352,86525.0,86519.0,0.07375174]
[1764083765262,0.55352,86525.0,86523.0,0.011563]
[1764083765449,0.37,86525.0,86524.0,0.17766333]
[1764083766046,0.37,86525.0,86524.0,0.17866333]
[1764083766847,0.55352,86525.0,86524.0,0.00117333]
[1764083767449,0.37,86525.0,86524.0,0.17866333]
[1764083767649,0.0001366,86534.0,86533.0,0.1890517]
[1764083768444,0.00017333,86541.0,86540.0,0.1890507]
[1764083768651,0.3608,86561.0,86544.0,0.05175]
[1764083768846,0.18352,86548.0,86547.0,0.3608]
[1764083769056,0.18352,86546.0,86545.0,0.18372]
[1764083769261,0.3608,86561.0,86545.0,0.18372]
[1764083769262,0.3608,86561.0,86553.0,0.17749]
[1764083769454,0.3608,86561.0,86545.0,0.18372]
[1764083769455,0.3608,86561.0,86560.0,0.0991581]
[1764083769752,0.3608,86561.0,86560.0,0.25133468]
[1764083769952,0.3608,86561.0,86560.0,0.17749]
[1764083770142,0.18352,86559.0,86558.0,0.18372]
[1764083770343,0.59352,86559.0,86558.0,0.36121]
[1764083770542,0.41,86559.0,86558.0,0.36121]
[1764083770948,0.50247,86559.0,86558.0,0.36121]
[1764083771358,0.50247,86559.0,86553.0,0.08304877]
[1764083771359,0.17967,86554.0,86553.0,0.08304877]
[1764083771654,0.42,86554.0,86553.0,0.182539]
[1764083771854,0.0918,86555.0,86554.0,0.0115588]
[1764083772157,0.5318,86555.0,86554.0,0.0115588]
[1764083772453,0.61967,86555.0,86554.0,0.1825388]
[1764083772659,0.5318,86555.0,86554.0,0.17098]